bitfinex/quotes_ETHUSD_20240823
["timestamp","ask_amount","ask_price","bid_price","bid_amount"]
[1724391136430,1.035343,2677.1,2675.9,22.973]
[1724391136922,3.7784,2677.0,2675.9,22.973]
[1724391137511,3.0,2676.9,2675.6,3.5951]
[1724391137718,0.38713596,2676.8,2675.7,2.679267]
[1724391138006,3.8478,2676.7,2675.7,2.679267]
[1724391139246,3.0,2676.6,2675.6,3.5951]
[1724391140055,3.0,2676.6,2675.5,19.46]
[1724391140357,3.5534,2676.4,2675.3,3.8284]
[1724391140508,3.728965,2676.3,2675.4,0.38284]
[1724391142410,4.0772,2676.2,2674.8,5.0]
[1724391142651,3.0,2676.1,2674.9,19.46]
[1724391143707,3.73693,2676.0,2674.6,3.5854]
[1724391143944,3.640693,2675.9,2674.7,0.732431]
[1724391144538,3.0,2675.8,2674.7,0.732431]
[1724391144740,0.576093,2675.9,2674.7,0.732431]
[1724391145141,0.514593,2675.9,2674.7,0.732431]
[1724391145342,0.514593,2675.9,2674.8,0.8056631]
[1724391145343,0.431293,2675.9,2674.8,0.8056631]
[1724391145553,3.5498,2675.8,2674.8,0.8056631]
[1724391145757,3.5498,2675.8,2674.7,19.46]
[1724391146076,3.0,2675.7,2674.7,19.46]
[1724391146419,2.7842,2675.7,2674.7,19.46]
[1724391146621,2.6157,2675.7,2674.7,19.46]
[1724391147135,3.5498,2675.8,2674.8,7.51711]
[1724391147458,3.7264,2676.3,2675.0,3.73824]
[1724391147662,3.7264,2676.3,2675.0,7.47647]
[1724391147962,3.7264,2676.3,2675.0,3.73823]
[1724391148161,3.7264,2676.3,2674.9,2.697711]
[1724391148524,3.7637,2676.1,2674.9,2.697711]
[1724391148747,3.7637,2675.9,2674.9,2.697711]
[1724391149121,3.0,2675.8,2674.9,2.697711]
[1724391150064,3.0,2675.8,2675.0,3.6724]
[1724391150289,3.7637,2675.9,2675.0,3.6724]
[1724391150290,3.7637,2675.9,2675.0,7.41063]
[1724391150422,3.688,2676.2,2675.0,7.41063]
[1724391150628,3.0,2676.1,2675.1,1.0108341]
[1724391151037,3.688,2676.0,2675.1,1.0108341]
[1724391151242,3.0,2675.9,2674.9,2.697711]
[1724391151456,3.0,2675.9,2674.8,3.71]
[1724391151696,3.8453,2675.8,2674.8,3.71]
[1724391151864,3.0,2675.7,2674.8,3.71]
[1724391153639,3.0,2675.7,2674.7,19.46]
[1724391155079,3.0,2675.7,2674.6,19.46]
[1724391155242,3.0,2675.7,2674.7,2.692181]
[1724391155663,3.7067,2675.6,2674.7,2.692181]
[1724391155990,3.0,2675.5,2674.7,2.692181]
[1724391160832,2.9239,2675.5,2674.7,2.692181]
[1724391160997,2.8714,2675.5,2674.7,22.152181]
[1724391161198,2.7609,2675.5,2674.7,22.152181]
[1724391161523,2.7312,2675.5,2674.8,1.88463802]
[1724391161699,3.7067,2675.6,2674.8,1.88463802]
[1724391162202,3.7067,2675.6,2674.7,19.46]
[1724391166924,3.7067,2675.6,2674.6,19.46]
[1724391167318,3.7067,2675.6,2674.4,19.46]
[1724391167643,3.6615,2675.5,2674.4,19.46]
[1724391168620,3.5857,2675.4,2674.4,19.46]
[1724391168813,0.46168896,2675.3,2674.4,21.78841263]
[1724391170324,3.5857,2675.4,2674.4,21.78841263]
[1724391172233,7.1839,2676.4,2674.4,21.78841263]
[1724391172234,3.6006,2676.3,2674.8,3.73849]
[1724391172441,3.6006,2676.3,2674.8,23.19849]
[1724391172861,3.73672,2676.2,2674.8,19.46]
[1724391173064,10.29601,2676.0,2674.8,19.46]
[1724391173279,6.559,2675.9,2674.8,19.46]
[1724391173799,3.0,2675.8,2674.8,19.46]
[1724391175490,6.5694,2675.7,2674.8,19.46]
[1724391175697,6.5694,2675.7,2674.7,6.1655]
[1724391175892,6.5694,2675.7,2674.8,2.56255]
[1724391176259,6.5694,2675.7,2674.8,6.30112]
[1724391176798,0.58639096,2675.5,2674.8,25.76112]
[1724391177322,0.58639096,2675.5,2674.9,0.07475783]
[1724391177498,0.58639096,2675.5,2675.0,2.58358778]
[1724391178202,0.58639096,2675.5,2675.1,6.6752]
[1724391178505,6.6985,2676.0,2675.1,10.4133]
[1724391178665,6.6985,2676.0,2675.1,6.6752]
[1724391179504,0.58633836,2676.2,2675.5,6.166]
[1724391179663,0.58633836,2676.2,2675.7,3.7372]
[1724391180006,6.2848,2676.7,2675.9,6.6496]
[1724391180702,6.2027,2676.7,2675.9,6.6496]
[1724391180904,6.2027,2676.7,2675.6,10.38699]
[1724391181082,0.62027,2676.6,2675.5,5.0]
[1724391181262,0.39084181,2676.9,2675.5,5.0]
[1724391181467,0.39084181,2676.9,2675.6,6.5275]
[1724391181701,0.39084181,2676.9,2675.9,3.73698]
[1724391182066,0.39084181,2676.9,2675.8,3.73711]
[1724391182407,0.39084181,2676.9,2675.9,0.373711]
[1724391183199,0.39084181,2676.9,2676.1,6.5829]
[1724391184169,0.39084181,2676.9,2675.8,3.7371]
[1724391184170,0.39084181,2676.9,2675.9,3.73703]
[1724391184568,0.39084181,2676.9,2675.8,6.165]
[1724391184869,0.39084181,2676.9,2675.8,9.9021]
[1724391185274,0.39084181,2676.9,2676.0,3.73691]
[1724391185569,0.39084181,2676.9,2676.1,0.373691]
[1724391185774,0.39084181,2676.9,2675.8,13.63921]
[1724391185973,0.39084181,2676.9,2675.8,9.9021]
[1724391186828,0.37544181,2676.9,2675.8,9.9021]
[1724391187006,6.6382,2677.0,2675.9,0.55]
[1724391187807,6.6382,2677.0,2676.0,19.46]
[1724391188008,7.15702,2676.9,2676.0,19.46]
[1724391191230,6.2179,2676.7,2676.0,19.46]
[1724391193605,6.442,2676.5,2675.5,19.46]
[1724391193805,6.2908,2676.5,2675.6,19.46]
[1724391194026,6.935,2676.5,2675.6,21.406]
[1724391194239,6.9148,2676.5,2675.6,21.406]
[1724391198528,6.9148,2676.5,2675.6,19.46]
[1724391199052,6.1391,2676.3,2675.6,19.46]
[1724391199748,6.1391,2676.3,2675.3,19.46]
[1724391200671,6.0195,2676.3,2675.4,3.73763]
[1724391200840,5.9789,2676.3,2675.5,0.55]
[1724391201012,5.9789,2676.3,2675.6,0.428763]
[1724391201325,5.9789,2676.3,2675.6,19.46]
[1724391201524,3.0,2676.2,2675.6,19.46]
[1724391201845,3.0,2676.3,2675.6,19.46]
[1724391202235,3.0,2676.4,2675.6,19.46]
[1724391202441,0.673629,2676.3,2675.6,19.46]
[1724391203426,6.7361,2676.6,2675.6,19.46]
[1724391203671,3.0,2676.6,2675.6,19.46]
[1724391203879,6.2518,2676.5,2675.6,19.46]
[1724391204076,3.0,2676.4,2675.6,19.46]
[1724391204527,6.2518,2676.3,2675.6,19.46]
[1724391204686,3.0,2676.2,2675.6,19.46]
[1724391205273,6.2518,2676.1,2675.6,19.46]
[1724391205495,3.0,2676.0,2675.6,19.46]
[1724391205723,3.0,2676.0,2675.1,19.46]
[1724391206019,3.43287596,2676.0,2675.1,22.29776878]
[1724391206972,6.2518,2675.9,2675.1,22.29776878]
[1724391207195,6.2518,2675.9,2675.2,19.46]
[1724391208109,6.2518,2675.9,2675.1,2.83776878]
[1724391208402,6.999003,2675.9,2675.0,19.46]
[1724391208607,6.3413,2675.7,2675.0,19.46]
[1724391211569,6.3413,2675.7,2674.6,29.58457]
[1724391211771,6.3413,2675.7,2674.7,0.55]
[1724391211988,6.3413,2675.7,2674.8,3.013457]
[1724391212198,6.3413,2675.7,2674.9,0.55]
[1724391213492,6.3413,2675.7,2674.3,25.9815263]
[1724391213820,3.0,2676.0,2674.4,19.46]
[1724391213821,6.4081,2675.6,2674.4,19.46]
[1724391214021,0.64081,2675.5,2674.5,2.97207963]
[1724391214224,6.3428,2675.4,2674.5,2.97207963]
[1724391215528,6.3428,2675.4,2674.6,0.55]
[1724391216325,6.3428,2675.4,2674.6,19.46]
[1724391216628,6.97708,2675.4,2674.6,19.46]
[1724391218125,6.97708,2675.4,2674.4,19.46]
[1724391220517,6.3428,2675.4,2674.5,14.12902]
[1724391220735,6.3428,2675.4,2674.5,10.39002]
[1724391221243,6.3428,2675.4,2674.5,6.6511]
[1724391221651,6.3428,2675.4,2674.5,10.3901]
[1724391221821,6.3428,2675.4,2674.7,3.73866]
[1724391222025,6.3428,2675.4,2674.8,0.55]
[1724391222546,6.3428,2675.4,2674.7,4.28872]
[1724391222846,6.3428,2675.4,2674.7,0.55]
[1724391223047,6.3428,2675.4,2674.8,0.727388]
[1724391223436,6.3428,2675.4,2674.8,19.46]
[1724391225337,6.2205,2676.2,2674.9,0.55]
[1724391225546,6.2205,2676.1,2674.9,20.01]
[1724391225922,6.2205,2676.1,2674.9,26.4498]
[1724391226128,0.62205,2676.0,2675.0,2.64498]
[1724391226648,3.62205,2676.0,2675.0,2.64498]
[1724391229586,3.62205,2676.0,2674.9,6.9898]
[1724391229899,6.4729,2675.9,2674.9,6.9898]
[1724391230199,6.4729,2675.9,2674.9,0.55]
[1724391230376,6.4729,2675.9,2674.8,19.46]
[1724391230702,6.5526,2675.7,2674.8,19.46]
[1724391230850,6.5526,2675.5,2674.3,10.3227063]
[1724391231069,6.5526,2675.5,2674.4,4.77141063]
[1724391232190,6.5526,2675.5,2674.5,0.55]
[1724391233160,6.5526,2675.5,2674.5,4.289]
[1724391233692,6.5526,2675.5,2674.5,0.55]
[1724391233859,6.5526,2675.5,2674.6,0.53213706]
[1724391234179,6.5526,2675.5,2674.5,0.55]
[1724391234608,6.5526,2675.5,2674.4,1.03227063]
[1724391235581,6.5526,2675.5,2674.3,6.5834263]
[1724391235893,6.2871,2675.3,2674.3,0.1290263]
[1724391236080,6.2495,2675.1,2674.3,0.1290263]
[1724391239706,6.4397,2675.4,2674.7,3.73864]
[1724391239908,6.4397,2675.6,2674.8,11.259784]
[1724391240703,6.4397,2675.6,2674.8,7.521264]
[1724391241598,6.4397,2675.6,2674.8,7.51994542]
[1724391241805,6.0496,2675.9,2674.9,3.73843]
[1724391242006,0.60496,2675.8,2675.0,0.55]
[1724391244434,6.4497,2676.7,2675.1,25.8632]
[1724391244605,6.4497,2676.7,2675.3,3.73777]
[1724391244805,0.58632886,2675.7,2675.3,3.73777]
[1724391245140,6.4183,2676.7,2675.9,3.73704]
[1724391245309,6.4183,2676.7,2676.0,25.8991]
[1724391245493,0.58623664,2676.6,2676.0,25.8991]
[1724391245692,0.58623664,2676.6,2676.1,19.46]
[1724391245913,0.58623664,2676.6,2676.2,19.46]
[1724391247009,1.2882703,2676.6,2676.2,19.46]
[1724391249147,6.2714,2676.5,2676.2,19.46]
[1724391249735,6.2714,2676.5,2675.5,19.46]
[1724391250038,6.2714,2676.5,2675.6,0.55]
[1724391252004,3.0,2676.4,2675.6,19.46]
[1724391252205,0.47936388,2676.3,2675.6,19.46]
[1724391255060,6.6418,2676.2,2675.6,19.46]
[1724391255524,6.6418,2676.2,2675.1,19.46]
[1724391255725,6.0682,2676.0,2674.9,19.46]
[1724391255988,6.0682,2675.8,2674.9,19.46]
[1724391259164,6.0682,2675.8,2675.0,19.46]
[1724391263369,6.2062,2676.0,2675.2,3.73796]
[1724391263573,6.82682,2676.0,2675.3,0.55]
[1724391263739,6.82682,2676.0,2675.1,6.7979]
[1724391263937,6.2062,2676.0,2675.1,10.53605]
[1724391264747,6.2062,2676.0,2675.1,6.7979]
[1724391265087,6.2062,2676.0,2675.2,19.46]
[1724391265293,6.2062,2676.0,2675.3,0.55]
[1724391271043,6.2062,2676.0,2675.3,20.01]
[1724391271288,0.62062,2675.9,2675.3,20.01]
[1724391271458,6.2062,2676.0,2675.3,20.01]
[1724391272805,9.6677,2676.4,2675.4,6.0504]
[1724391273000,9.6677,2676.4,2675.5,0.55]
[1724391273203,9.6677,2676.4,2675.5,4.28759]
[1724391273360,9.6677,2676.4,2675.5,1.82907607]
[1724391273682,6.6677,2676.4,2675.5,5.56667607]
[1724391273882,6.6677,2676.4,2675.6,23.1974]
[1724391274285,6.6677,2676.4,2675.7,0.55]
[1724391274487,7.39309366,2676.4,2675.8,19.46]
[1724391276962,6.6677,2676.4,2675.8,19.46]
[1724391277894,0.58623664,2676.6,2675.9,20.01]
[1724391277895,7.04123664,2676.6,2675.9,20.01]
[1724391278212,7.04123664,2676.6,2675.9,23.74705]
[1724391278687,7.04123664,2676.6,2675.9,20.01]
[1724391278904,7.04123664,2676.6,2676.0,2.63001]
[1724391279051,7.04123664,2676.6,2676.1,0.55]
[1724391279659,0.58623664,2676.6,2676.1,0.55]
[1724391280084,0.58623664,2676.6,2675.9,19.46]
[1724391281867,0.58623664,2676.6,2676.0,0.55]
[1724391282074,0.58623664,2676.6,2676.1,2.374703]
[1724391282401,0.58623664,2676.6,2676.0,0.55]
[1724391282960,0.58623664,2676.6,2676.1,19.46]
[1724391284274,0.58623664,2676.6,2676.2,23.27129508]
[1724391284474,0.58623664,2676.6,2676.2,29.92047]
[1724391284791,0.58623664,2676.6,2676.3,2.992047]
[1724391285017,0.58623664,2676.6,2676.4,19.46]
[1724391287644,6.2162,2677.3,2676.5,0.62471708]
[1724391287784,0.58609606,2676.8,2676.5,20.01]
[1724391287983,6.2162,2677.3,2676.6,2.374634]
[1724391288486,0.58608966,2676.8,2676.6,2.44934692]
[1724391288683,6.2162,2677.3,2676.6,2.44934692]
[1724391288917,0.58608506,2676.8,2676.6,2.374634]
[1724391289186,6.2162,2677.3,2676.7,2.2384634]
[1724391289433,0.58607587,2676.8,2676.7,2.2384634]
[1724391289940,6.2162,2677.3,2676.7,2.2384634]
[1724391290937,6.2162,2677.3,2676.7,2.31317451]
[1724391291148,6.2162,2677.3,2676.7,2.2384634]
[1724391291343,6.2162,2677.3,2676.8,1.09011974]
[1724391292692,6.2162,2677.3,2676.5,0.55]
[1724391295108,6.2162,2677.3,2676.5,4.28619]
[1724391296726,6.2162,2677.3,2676.6,3.73596]
[1724391297030,6.2162,2677.3,2676.7,0.55]
[1724391298421,6.2162,2677.3,2676.5,0.55]
[1724391298635,6.2162,2677.3,2676.6,2.748254]
[1724391298811,6.2162,2677.3,2676.7,0.55]
[1724391300557,6.70326866,2677.5,2676.8,0.07470409]
[1724391300756,0.58606866,2677.5,2677.0,3.7355]
[1724391301058,0.58606866,2677.5,2677.1,0.42855]
[1724391301211,0.58606866,2677.5,2677.2,0.55]
[1724391301412,0.58606866,2677.5,2677.1,0.42855]
[1724391301645,0.58606866,2677.5,2676.7,10.73736]
[1724391302030,0.58606866,2677.5,2676.9,3.73558]
[1724391302235,0.58606866,2677.5,2677.0,0.55]
[1724391303710,0.58606866,2677.5,2676.9,0.55]
[1724391304211,6.5578,2677.4,2676.5,3.73614]
[1724391304414,6.5578,2677.4,2676.6,25.279614]
[1724391304610,6.5578,2677.4,2676.6,22.279614]
[1724391305171,6.5578,2677.4,2676.6,26.015624]
[1724391305334,6.5578,2677.4,2676.6,22.279614]
[1724391305530,6.5578,2677.4,2676.7,2.6015754]
[1724391305735,6.5578,2677.4,2676.5,19.46]
[1724391305931,6.323,2677.2,2676.5,19.46]
[1724391306321,6.323,2676.9,2676.0,19.46]
[1724391306527,6.323,2676.6,2675.7,19.46]
[1724391307049,6.4116,2676.4,2675.7,19.46]
[1724391307268,6.4116,2676.4,2675.3,19.46]
[1724391307467,6.4116,2676.4,2675.4,19.46]
[1724391307768,6.3021,2676.2,2675.4,19.46]
[1724391308126,6.3021,2676.0,2675.4,19.46]
[1724391308353,6.3021,2676.0,2674.9,19.46]
[1724391308559,6.3021,2676.0,2675.0,2.319851]
[1724391310146,6.3021,2676.0,2674.7,19.46]
[1724391310351,3.0,2676.1,2674.7,19.46]
[1724391310352,6.1275,2675.7,2674.7,19.46]
[1724391310549,3.73723,2675.8,2674.7,19.46]
[1724391310550,6.2449,2675.5,2674.7,19.46]
[1724391312281,6.2449,2675.5,2674.3,19.5890263]
[1724391312465,6.4147,2675.3,2674.3,19.5890263]
[1724391312651,6.4147,2675.3,2674.4,19.46]
[1724391314954,6.4147,2675.3,2674.4,23.19905]
[1724391315292,6.4147,2675.3,2674.4,19.46]
[1724391315468,0.64147,2675.2,2674.4,19.46]
[1724391315668,0.64147,2675.2,2674.5,19.46]
[1724391316081,6.4147,2675.3,2674.5,19.46]
[1724391316455,6.4147,2675.3,2674.6,4.28879]
[1724391317389,6.4147,2675.3,2674.6,0.55]
[1724391318561,6.4147,2675.3,2674.6,4.28883]
[1724391319181,6.4147,2675.3,2674.6,0.55]
[1724391319378,6.4147,2675.3,2674.6,4.28886]
[1724391319582,6.4147,2675.3,2674.6,7.037649]
[1724391320613,6.4147,2675.3,2674.6,3.298789]
[1724391320904,6.4147,2675.3,2674.3,0.1290263]
[1724391320905,6.4147,2675.3,2674.7,19.46]
[1724391322190,6.2314,2675.3,2674.7,19.46]
[1724391322409,6.2314,2675.3,2674.8,0.55]
[1724391323115,6.0781,2675.3,2674.8,0.55]
[1724391323608,5.9498,2675.3,2674.8,0.55]
[1724391323919,3.0,2675.7,2674.8,2.6257635]
[1724391324085,3.0,2675.6,2674.8,2.551]
[1724391324413,3.73599,2676.7,2674.8,2.551]
[1724391324414,7.47265,2676.5,2674.9,3.81312958]
[1724391324709,3.7363,2676.5,2675.0,23.74826]
[1724391324882,3.7363,2676.5,2675.1,2.748663]
[1724391326106,3.0,2676.4,2675.1,2.748663]
[1724391326288,3.7365,2676.3,2675.1,2.748663]
[1724391326484,3.0,2676.2,2675.1,2.748663]
[1724391326709,6.3023,2676.1,2675.1,2.748663]
[1724391326912,6.3023,2675.9,2675.0,20.01]
[1724391327116,6.3023,2675.9,2674.9,19.46]
[1724391328198,6.3648,2675.6,2674.9,19.46]
[1724391328575,3.73714,2675.9,2674.9,19.46]
[1724391328576,6.3648,2675.4,2674.9,19.46]
[1724391330509,6.3648,2675.4,2674.4,19.46]
[1724391330715,6.3648,2675.4,2674.5,21.96890263]
[1724391330876,6.3648,2675.4,2674.5,21.41890263]
[1724391331892,6.3648,2675.4,2674.6,0.09411734]
[1724391333080,3.0,2675.5,2674.4,19.46]
[1724391333081,6.3653,2675.2,2674.4,19.46]
[1724391333412,6.3653,2675.0,2674.5,0.09657427]
[1724391334487,7.00183,2675.0,2674.5,0.09657427]
[1724391336697,7.00183,2675.0,2674.3,0.1290263]
[1724391336902,7.00183,2675.0,2674.6,0.09668894]
[1724391337118,7.00183,2675.0,2674.3,0.1290263]
[1724391337432,7.00183,2675.0,2674.7,0.09666487]
[1724391337730,0.54486754,2674.9,2674.8,0.09664082]
[1724391338124,0.54486754,2674.9,2674.3,0.1290263]
[1724391338300,6.3653,2675.0,2674.8,0.09664082]
[1724391338501,6.3653,2675.0,2674.3,0.1290263]
[1724391338732,6.3653,2675.0,2674.9,0.09661676]
[1724391338907,9.3653,2675.0,2674.3,0.1290263]
[1724391339107,6.3653,2675.0,2674.9,0.09661676]
[1724391339428,10.00183,2675.0,2674.3,0.1290263]
[1724391339630,3.0,2674.9,2674.3,0.1290263]
[1724391339803,3.0,2674.9,2674.4,0.09673706]
[1724391340010,6.2511,2674.8,2674.4,0.09673706]
[1724391340209,6.79596754,2674.8,2674.4,0.09673706]
[1724391341234,6.79596754,2674.8,2674.3,0.1290263]
[1724391341435,6.2511,2674.8,2674.3,0.1290263]
[1724391341727,6.2511,2674.8,2674.4,0.09698436]
[1724391342334,6.2511,2674.8,2674.3,0.1290263]
[1724391342510,6.2511,2674.8,2674.5,0.0969603]
[1724391342704,6.2511,2674.8,2674.3,0.1290263]
[1724391342930,6.2511,2674.8,2674.6,0.09693624]
[1724391343118,6.2511,2674.8,2674.3,0.1290263]
[1724391343429,6.2511,2674.8,2674.7,0.09691217]
[1724391343641,6.2511,2674.8,2674.3,0.1290263]
[1724391344040,6.2511,2674.8,2674.4,0.09698436]
[1724391345507,3.0,2674.7,2674.3,0.1290263]
[1724391345743,3.0,2674.7,2674.5,0.09395523]
[1724391346045,3.0,2674.7,2674.3,0.1290263]
[1724391346420,6.0846,2674.6,2674.4,0.09399133]
[1724391346740,6.73875,2674.7,2674.3,0.1290263]
[1724391346741,9.0846,2674.5,2674.3,0.1290263]
[1724391347038,6.0846,2674.4,2674.3,0.1290263]
[1724391347243,9.0846,2674.4,2674.3,0.1290263]
[1724391347964,9.0538,2674.4,2674.3,0.1290263]
[1724391350244,17.11885191,2674.4,2674.3,0.1290263]
[1724391350946,20.85800191,2674.4,2674.3,0.1290263]
[1724391351809,17.11885191,2674.4,2674.3,0.1290263]
[1724391353630,13.37970191,2674.4,2674.3,0.1290263]
[1724391354029,17.11885191,2674.4,2674.3,0.1290263]
[1724391354748,9.64055191,2674.4,2674.3,0.1290263]
[1724391355915,6.64055191,2674.4,2674.3,0.1290263]
[1724391357353,9.64055191,2674.4,2674.3,0.1290263]
[1724391357714,9.64055191,2674.4,2672.2,19.46]
[1724391357715,6.3179,2673.9,2672.8,6.0521]
[1724391357917,6.3179,2673.9,2673.0,0.09246541]
[1724391358118,3.0,2673.8,2672.8,6.0521]
[1724391358447,3.0,2673.8,2672.9,0.0893445]
[1724391359774,3.0,2673.8,2672.5,6.1878]
[1724391359993,3.0,2673.8,2673.0,0.08643841]
[1724391360173,3.0,2673.8,2672.5,6.1878]
[1724391360483,3.0,2673.8,2673.1,0.08641432]
[1724391360484,3.74014,2673.7,2673.1,0.08641432]
[1724391360691,3.0,2673.6,2672.5,6.1878]
[1724391360888,6.74029,2673.6,2672.5,6.1878]
[1724391361203,6.6131,2673.4,2672.6,0.08653478]
[1724391362956,6.0061,2672.8,2671.9,25.8389]
[1724391363152,6.0061,2672.8,2672.7,0.08363702]
[1724391363396,6.0061,2672.8,2671.9,6.3789]
[1724391363397,0.50736854,2672.8,2671.9,19.46]
[1724391363703,3.0,2673.1,2672.7,0.08347823]
[1724391363903,3.0,2673.1,2672.6,6.2037]
[1724391364057,6.5626,2673.5,2672.1,23.20228]
[1724391364058,3.0,2673.4,2672.8,0.08345413]
[1724391364390,6.5626,2673.3,2672.9,0.08343004]
[1724391364691,6.5626,2673.3,2671.7,5.1290263]
[1724391364692,6.055,2672.7,2671.8,6.4015]
[1724391364886,0.6055,2672.6,2671.8,25.8615]
[1724391365062,0.6055,2672.6,2671.9,0.08395999]
[1724391365678,6.4894,2672.5,2671.9,0.08395999]
[1724391365879,3.74196,2672.4,2671.9,0.08395999]
[1724391366200,0.57589754,2672.3,2671.7,0.1290263]
[1724391366653,3.7424,2672.1,2671.8,0.08402022]
[1724391366850,6.2184,2672.2,2671.8,0.08402022]
[1724391367074,3.0,2672.1,2671.7,0.1290263]
[1724391367592,10.10964,2672.0,2671.8,0.08402022]
[1724391367766,3.74279,2671.8,2671.7,0.1290263]
[1724391367965,3.6055,2671.9,2671.7,0.1290263]
[1724391368182,3.0,2671.8,2671.7,0.1290263]
[1724391368498,6.74279,2671.8,2671.7,0.1290263]
[1724391368669,10.48558,2671.8,2671.7,0.1290263]
[1724391368998,17.06377754,2671.8,2671.7,0.1290263]
[1724391370157,13.32098754,2671.8,2671.7,0.1290263]
[1724391371181,17.06377754,2671.8,2671.7,0.1290263]
[1724391372512,21.91551296,2671.8,2671.7,0.1290263]
[1724391373110,13.32098754,2671.8,2671.7,0.1290263]
[1724391373560,9.57819754,2671.8,2671.7,0.1290263]
[1724391373971,13.32098754,2671.8,2671.7,0.1290263]
[1724391374174,17.06377754,2671.8,2671.7,0.1290263]
[1724391375706,22.05656754,2671.8,2671.7,0.1290263]
[1724391376138,17.06377754,2671.8,2671.7,0.1290263]
[1724391376274,13.32098754,2671.8,2671.7,0.1290263]
[1724391377339,0.57589754,2671.8,2671.7,0.1290263]
[1724391377613,3.74262,2672.0,2671.7,0.2154201]
[1724391378209,3.73,2672.1,2671.7,0.2154201]
[1724391378576,3.0,2672.0,2671.7,0.2154201]
[1724391378976,3.0,2672.0,2671.7,0.1290263]
[1724391379576,7.1839,2672.2,2671.7,0.1290263]
[1724391379925,3.74182,2672.5,2671.8,6.4748]
[1724391380088,3.74197,2672.4,2671.8,6.4748]
[1724391380422,3.7419,2672.5,2671.9,0.08591766]
[1724391380915,3.74195,2672.4,2671.9,0.08591766]
[1724391381223,0.438141,2672.5,2671.9,0.08591766]
[1724391381464,3.74161,2672.7,2671.9,0.08591766]
[1724391381726,3.7413,2672.9,2671.9,0.08591766]
[1724391382112,7.1839,2673.0,2671.9,0.08591766]
[1724391382303,7.1839,2673.0,2672.0,6.4748]
[1724391382499,7.1839,2673.0,2672.0,7.13087177]
[1724391382705,3.74128,2672.9,2672.1,0.08492951]
[1724391382909,7.1839,2673.0,2672.1,0.08492951]
[1724391383096,10.92509,2673.0,2672.1,0.08492951]
[1724391383315,3.74127,2672.9,2672.1,0.08492951]
[1724391383514,3.74153,2672.7,2672.1,0.08492951]
[1724391383703,3.74183,2672.5,2672.1,0.08492951]
[1724391383900,3.0,2672.6,2672.1,0.08492951]
[1724391384107,6.74175,2672.6,2672.0,6.4748]
[1724391384436,6.74175,2672.6,2672.1,0.08480304]
[1724391384791,3.74218,2672.3,2672.1,0.08480304]
[1724391385014,3.0,2672.2,2671.7,0.1290263]
[1724391385406,6.74236,2672.2,2671.7,0.1290263]
[1724391385601,3.0,2672.2,2671.7,0.1290263]
[1724391385862,0.674218,2672.1,2671.7,0.1290263]
[1724391387295,3.0,2672.6,2671.7,0.1290263]
[1724391388493,3.0,2672.7,2671.7,0.1290263]
[1724391389116,3.74127,2672.9,2671.8,6.4018]
[1724391389117,3.0,2672.8,2671.8,6.4018]
[1724391389342,0.674127,2672.7,2671.8,6.4018]
[1724391389706,3.0,2672.9,2671.8,6.4018]
[1724391390609,3.74141,2672.8,2671.8,6.4018]
[1724391390945,3.0,2672.7,2671.8,6.4018]
[1724391391133,3.0,2672.9,2671.8,6.4018]
[1724391392145,3.74155,2672.7,2671.8,6.4018]
[1724391392445,3.374155,2672.6,2671.8,6.4018]
[1724391392652,6.3214,2672.4,2671.7,0.1290263]
[1724391392815,3.74242,2672.1,2671.7,0.1290263]
[1724391393333,3.0,2672.0,2671.7,0.1290263]
[1724391393551,0.674242,2671.9,2671.7,0.1290263]
[1724391394423,6.74225,2672.2,2671.7,0.1290263]
[1724391394620,3.0,2672.2,2671.7,0.1290263]
[1724391395149,6.74228,2672.2,2671.7,0.1290263]
[1724391395552,3.74252,2672.0,2671.7,0.1290263]
[1724391395713,7.116912,2671.9,2671.7,0.1290263]
[1724391396138,3.74279,2671.8,2671.7,0.1290263]
[1724391396358,6.74279,2671.8,2671.7,0.1290263]
[1724391396870,3.0,2671.8,2671.7,0.1290263]
[1724391397040,14.10118,2671.8,2671.7,0.1290263]
[1724391397239,17.90832554,2671.8,2671.7,0.1290263]
[1724391400576,14.16553554,2671.8,2671.7,0.1290263]
[1724391400776,17.90832554,2671.8,2671.7,0.1290263]
[1724391402049,7.54993554,2671.8,2671.7,0.1290263]
[1724391402640,11.29272554,2671.8,2671.7,0.1290263]
[1724391403136,7.54993554,2671.8,2671.7,0.1290263]
[1724391403471,3.80714554,2671.8,2671.7,0.1290263]
[1724391403677,3.80714554,2671.8,2671.7,0.20661851]
[1724391404066,10.92608,2672.3,2671.7,0.1290263]
[1724391404376,7.1839,2672.3,2671.7,0.1290263]
[1724391404582,3.74245,2672.1,2671.7,0.1290263]
[1724391404952,3.74252,2672.0,2671.7,0.1290263]
[1724391405172,0.748497,2672.0,2671.7,0.1290263]
[1724391405362,3.74,2672.7,2671.8,6.3052]
[1724391405746,3.74,2672.7,2671.8,6.38241979]
[1724391406865,3.0,2672.6,2671.8,6.38241979]
[1724391407273,3.74,2672.7,2671.8,6.38241979]
[1724391407582,0.74814,2672.6,2671.8,6.38241979]
[1724391408492,4.48984,2672.6,2671.8,6.38241979]
[1724391408659,6.2012,2673.6,2671.9,6.1962]
[1724391408981,3.74086,2673.2,2672.1,6.1962]
[1724391409342,3.74086,2673.2,2672.3,6.6563]
[1724391409585,4.489005,2673.2,2672.4,0.07673302]
[1724391410081,3.74098,2673.1,2672.4,0.07673302]
[1724391410382,4.489005,2673.2,2672.4,0.07673302]